Workbook

Sheet 3(2)
A1: If your Gross Pay is $900.00 and you own 15.00% in Tax what is the amount of the tax paid?

Sheet 3(2an)
A1: ="If your Gross Pay is "&DOLLAR(B3)&" and you own "&TEXT(B4,"0.00%")&" in Tax what is the amount of the tax paid?" -> If your Gross Pay is $900.00 and you own 15.00% in Tax what is the amount of the tax paid?
A3: Base = Gross Pay = | B3: 900
A4: Rate = Tax Rate = | B4: 0.15
A5: Part = Amount of tax paid | B5: ??
A6: Formula: P = R * B
A7: Amount of Tax Paid | B7: =B3*B4 -> 135

Sheet 3(3)
A1: If the Financial Statement says the Wage Expense was $10,000.00.
A2: and the Wage Expenses as a Percentage of Total Revenue was
A3: 20.00%, what was Total Revenue?

Sheet 3(3an)
A1: ="If the Financial Statement says the Wage Expense was "&DOLLAR(B7)&"." -> If the Financial Statement says the Wage Expense was $10,000.00.
A2: and the Wage Expenses as a Percentage of Total Revenue was
A3: =TEXT(B6,"0.00%")&", what was Total Revenue?" -> 20.00%, what was Total Revenue?
A5: Base = Total Revenue | B5: ??
A6: Rate = | B6: 0.2 | C6: Wage Expenses as a Percentage of Total Revenue
A7: Part = Wage Expense = | B7: 10000
A8: Formula = B = P/R
A9: Total Revenue | B9: =B7/B6 -> 50000

Sheet 3(4)
A1: The number of students in the district that missed 20 or more days of school in the year was 4,500
A2: The number of students in the district was 22,500
A3: What is the percentage of students that missed 20 or more days of school in the year

Sheet 3(4an)
A1: ="The number of students in the district that missed 20 or more days of school in the year was "&FIXED(B7,0) -> The number of students in the district that missed 20 or more days of school in the year was 4,500
A2: ="The number of students in the district was "&FIXED(B5,0) -> The number of students in the district was 22,500
A3: What is the percentage of students that missed 20 or more days of school in the year
A5: Base = All Students | B5: 22500
A6: Rate = | B6: ?? | C6: percentage of students that missed 20 or more days of school in the year
A7: Part = Students Missed >20 Days | B7: 4500
A8: Formula = R = P/B
A9: Percentage of students that missed 20 or more days of school in the year | B9: =B7/B5 -> 0.2

Sheet 3(5) I
A1: The number of students in the district that missed 20 or more days of school last year was 4,500
A2: The number of students in the district that missed 20 or more days of school this year was 6,750
A3: What was the percentage change?
A5: Begin
A6: End
A7: Rate
A8: AOC | F8: Beg | G8: + | H8: AOC | I8: = | J8: End
A9: ROC
F10: Beg Rate | G10: + | H10: ROC | J10: Rate
F12: AOC | G12: / | H12: ROC | I12: = | J12: Beg
F14: End | G14: / | H14: Rate | I14: = | J14: Beg

Sheet 3(5an) I
A1: ="The number of students in the district that missed 20 or more days of school last year was "&FIXED(B5,0) -> The number of students in the district that missed 20 or more days of school last year was 4,500
A2: ="The number of students in the district that missed 20 or more days of school this year was "&FIXED(B6,0) -> The number of students in the district that missed 20 or more days of school this year was 6,750
A3: What was the percentage change?
A5: Begin | B5: 4500 | C5: Last Year's # Students Missed School
A6: End | B6: 6750 | C6: This Year's # Students Missed School
A7: Rate | B7: End/Beg
A8: AOC | B8: End - Beg | F8: Beg | G8: + | H8: AOC | I8: = | J8: End
A9: ROC | B9: AOC/Beg | J9: =B14+B12 -> 6750
F10: Beg Rate | G10: + | H10: ROC | J10: Rate | K10: Note: 1+ROC + Rate
A11: =A6 -> End | B11: AOC | C11: Rate | D11: ROC | J11: =D14+D12 -> 1.5 | K11: =1+D12 -> 1.5
A12: =B6 -> 6750 | B12: =A12-B14 -> 2250 | C12: =D12+D14 -> 1.5 | D12: =B12/B14 -> 0.5 | F12: AOC | G12: / | H12: ROC | I12: = | J12: Beg
B13: Beg | D13: Beg Rate | J13: =B12/D12 -> 4500
B14: =B5 -> 4500 | D14: 1 | F14: End | G14: / | H14: Rate | I14: = | J14: Beg
J15: =A12/C12 -> 4500

Sheet 3(5) D
A1: The number of students in the district that missed 20 or more days of school last year was 4,500
A2: The number of students in the district that missed 20 or more days of school this year was 3,150
A3: What was the percentage change?
A5: Begin
A6: End
A7: Rate
A8: AOC | F8: Beg | G8: + | H8: AOC | I8: = | J8: End
A9: ROC
F10: Beg Rate | G10: + | H10: ROC | J10: Rate
F12: AOC | G12: / | H12: ROC | I12: = | J12: Beg
F14: End | G14: / | H14: Rate | I14: = | J14: Beg

Sheet 3(5an) D
A1: ="The number of students in the district that missed 20 or more days of school last year was "&FIXED(B5,0) -> The number of students in the district that missed 20 or more days of school last year was 4,500
A2: ="The number of students in the district that missed 20 or more days of school this year was "&FIXED(B6,0) -> The number of students in the district that missed 20 or more days of school this year was 3,150
A3: What was the percentage change?
A5: Begin | B5: 4500 | C5: Last Year's # Students Missed School
A6: End | B6: 3150 | C6: This Year's # Students Missed School
A7: Rate | B7: End/Beg
A8: AOC | B8: End - Beg | F8: =A11 -> Beg | G8: + | H8: =B11 -> AOC | I8: = | J8: =B13 -> End
A9: ROC | B9: AOC/Beg | J9: =B12+A12 -> 3150
F10: =C11 -> Beg Rate | G10: + | H10: =D11 -> ROC | J10: =D13 -> Rate | K10: Note: 1+ROC = Rate
A11: Beg | B11: AOC | C11: Beg Rate | D11: ROC | J11: =C12+D12 -> 0.7 | K11: =1+D12 -> 0.7
A12: =B5 -> 4500 | B12: =B14-A12 -> -1350 | C12: 1 | D12: =B12/A12 -> -0.3 | F12: =B11 -> AOC | G12: / | H12: =D11 -> ROC | I12: = | J12: =A11 -> Beg
B13: End | D13: Rate | J13: =B12/D12 -> 4500
B14: =B6 -> 3150 | D14: =B14/A12 -> 0.7 | F14: =B13 -> End | G14: / | H14: =D13 -> Rate | I14: = | J14: =A11 -> Beg
J15: =B14/D14 -> 4500

Sheet 3(5) Rate = 1 + ROC
A1: Invest amount | B1: 25000 | C1: Beg
A2: CD Rate for year | B2: 0.035 | C2: ROC
A3: Rate = Amount to multiply by Beg to get End
A4: Amount at end of year
A5: Amount at end of year
A7: Invest amount | B7: 25000 | C7: Beg
A8: Decrease in Value For Year | B8: -0.125 | C8: ROC
A9: Rate = Amount to multiply by Beg to get End
A10: Amount at end of year
A11: Amount at end of year
A13: Note:
A14: Rate = 1 + ROC
A15: ROC = Rate - 1

Sheet 3(5an) Rate = 1 + ROC
A1: Invest amount | B1: 25000 | C1: Beg
A2: CD Rate for year | B2: 0.035 | C2: ROC
A3: Rate = Amount to multiply by Beg to get End | B3: =1+B2 -> 1.035 | C3: Rate = 1 + ROC
A4: Amount at end of year | B4: =B1*B3 -> 25875 | C4: End = Beg * Rate
A5: Amount at end of year | B5: =B1*(1+B2) -> 25875 | C5: End = Beg *(1+ROC) | F5: =FV(B2,1,,-B1) -> 25875
A7: Invest amount | B7: 25000 | C7: Beg
A8: Decrease in Value For Year | B8: -0.125 | C8: ROC
A9: Rate = Amount to multiply by Beg to get End | B9: =1+B8 -> 0.875 | C9: Rate = 1 + ROC
A10: Amount at end of year | B10: =B7*B9 -> 21875 | C10: End = Beg * Rate
A11: Amount at end of year | B11: =B7*(1+B8) -> 21875 | C11: End = Beg *(1+ROC) | F11: =FV(B8,1,,-B7) -> 21875
A13: Note:
A14: Rate = 1 + ROC
A15: ROC = Rate - 1

Sheet Sheet2

Sheet Sheet3
